fUST/lending_fUST_20240131
["ID","MTS","AMOUNT","RATE_DAILY","PERIOD"]
[313030814,1706650240317,-170.67918142,0.00021055,2]
[313030816,1706650240328,-156.31172154,0.00021055,2]
[313030819,1706650240338,-405.92314342,0.00021055,2]
[313030821,1706650240347,-170.577747,0.00021056,2]
[313030822,1706650240356,-170.577747,0.00021056,2]
[313030824,1706650240365,-170.577747,0.00021056,2]
[313030826,1706650240374,-170.57775,0.00021056,2]
[313030828,1706650240384,-238.48823411,0.00021056,2]
[313030831,1706650240397,-4.71174233,0.00021056,2]
[313030833,1706650240407,-5038.31984477,0.00021056,2]
[313030835,1706650240420,-1891.039719,0.00021056,2]
[313030837,1706650240431,-998.7281087,0.00021056,2]
[313031104,1706650243301,-10172.40645166,0.00021056,2]
[313031105,1706650243310,-200.0,0.00021635,7]
[313031106,1706650243320,-166.666666,0.00021918,2]
[313031107,1706650243330,-198.07195518,0.00022,2]
[313031108,1706650243339,-3972.88161015,0.00022,2]
[313031109,1706650243349,-426.44750157,0.00022,2]
[313031111,1706650243358,-166.666666,0.00022431,2]
[313031113,1706650243366,-166.666666,0.00022944,2]
[313031115,1706650243376,-1261.25015974,0.00023,2]
[313031116,1706650243385,-9950.40162057,0.00023,2]
[313031117,1706650243394,-169.676774,0.00023182,2]
[313031118,1706650243406,-166.666666,0.00023456,2]
[313031120,1706650243416,-280.0,0.00023799,7]
[313031123,1706650243425,-166.666666,0.00023969,2]
[313031124,1706650243434,-4018.69495971,0.00024,2]
[313031125,1706650243443,-151.0,0.00024229,2]
[313031126,1706650243453,-166.666666,0.00024482,2]
[313031127,1706650243462,-280.0,0.00024658,2]
[313031129,1706650243471,-200.0,0.00024658,2]
[313031131,1706650243480,-455.76208151,0.00025,2]
[313031133,1706650243493,-1372.98685299,0.00025,2]
[313031135,1706650243502,-4729.25513018,0.00025,2]
[313031137,1706650243511,-507.18431293,0.00025,2]
[313031138,1706650243624,-173.29935563,0.00025,2]
[313031139,1706650243633,-4856.67914003,0.00025,2]
[313031159,1706650244806,-742.34321696,0.00020602,2]
[313031162,1706650244818,-2449.67535945,0.00020602,2]
[313031166,1706650244864,-476.48639649,0.00020602,2]
[313031167,1706650244876,-3892.9835901,0.00020602,2]
[313031208,1706650246426,-11943.9348926,0.00020602,2]
[313031209,1706650246435,-175.43157375,0.00021048,2]
[313031210,1706650246444,-864.10237399,0.00021055,2]
[313031211,1706650246454,-2795.32656536,0.00025,2]
[313031212,1706650246463,-155.02635448,0.00025,2]
[313031213,1706650246472,-1009.05174413,0.00025,2]
[313031214,1706650246481,-50000.0,0.00025141,2]
[313031215,1706650246490,-200.0,0.00025479,2]
[313031216,1706650246498,-391.0,0.00026179,15]
[313031217,1706650246508,-50000.0,0.0002671,2]
[313031218,1706650246517,-590.2319044,0.00026732,2]
[313031219,1706650246526,-288.38728156,0.00026754,2]
[313031220,1706650246535,-61363.92904417,0.00026754,2]
[313031221,1706650246544,-35000.0,0.00026754,2]
[313031222,1706650246553,-29561.15865085,0.00026777,2]
[313031224,1706650246562,-151.0,0.00027405,2]
[313031226,1706650246571,-200.0,0.00028797,15]
[313031228,1706650246581,-348.0,0.00028797,15]
[313031230,1706650246590,-49083.57436634,0.0002978,5]
[313031263,1706650270462,538.13039431,0.0001895,2]
[313031265,1706650511942,762.0429544,0.0001895,2]
[313031267,1706650705043,163.537017,0.00019457,2]
[313031370,1706651435639,-453.46449264,0.00020505,2]
[313031371,1706651435649,-175.43157375,0.00020506,2]
[313031372,1706651435658,-1996.16717164,0.00020507,2]
[313031373,1706651435667,-20899.05725792,0.0002063,2]
[313031375,1706651435677,-20925.73501298,0.00020631,2]
[313031376,1706651435686,-3489.16252362,0.00020634,2]
[313031377,1706651435696,-3192.46,0.00021043,3]
[313031379,1706651435705,-2660.38,0.00021043,3]
[313031381,1706651435714,-162.64127601,0.00021047,2]
[313031383,1706651435724,-405.92314342,0.00021053,2]
[313031385,1706651435733,-156.31172154,0.00021053,2]
[313031387,1706651435742,-155.02170304,0.00021053,2]
[313031389,1706651435752,-156.66877586,0.00021053,2]
[313031391,1706651435762,-4803.01469645,0.00021053,2]
[313031393,1706651435772,-166.52761117,0.00021053,2]
[313031394,1706651435785,-19726.57954333,0.00021053,2]
[313031395,1706651435796,-170.67918142,0.00021054,2]
[313031396,1706651435805,-4090.94080703,0.00021054,2]
[313031437,1706651438558,-20925.73501298,0.00020629,2]
[313031439,1706651438567,-252.35653866,0.00021054,2]
[313031441,1706651438577,-19884.40674015,0.00021054,2]
[313031443,1706651438586,-200.69533867,0.00021055,2]
[313031445,1706651438595,-310.00465008,0.00021055,2]
[313031447,1706651438605,-555.97053838,0.00021055,2]
[313031449,1706651438614,-1580.96149177,0.00021055,2]
[313031451,1706651438623,-309.89938513,0.00021055,2]
[313031453,1706651438633,-522.41614365,0.00021055,2]
[313031455,1706651438642,-522.0841828,0.00021055,2]
[313031457,1706651438651,-7968.22560607,0.00021055,2]
[313031459,1706651438661,-7066.62110254,0.00021055,2]
[313031461,1706651438670,-238.48823411,0.00021055,2]
[313031463,1706651438679,-204.79527494,0.00021055,2]
[313031465,1706651438687,-155.00155002,0.00021055,2]
[313031467,1706651438696,-155.00310006,0.00021055,2]
[313031469,1706651438705,-186.94222164,0.00021056,2]
[313031471,1706651438714,-15390.37952808,0.00021056,2]
[313031473,1706651438723,-200.0,0.00021662,7]
[313031475,1706651438732,-166.666666,0.00021918,2]
[313031477,1706651438741,-2037.24971516,0.00022,2]
[313031479,1706651438750,-280.0,0.00023828,7]
[313031481,1706651438758,-391.0,0.00026211,15]
[313031483,1706651438767,-19315.20273238,0.00026808,2]
[313031541,1706651443948,-689.4019881,0.00026808,2]
[313031554,1706651480907,100538.75106851,0.00019457,2]
[313031555,1706651484802,185.64325511,0.0002041,2]
[313031564,1706651657954,154.98450255,0.000176,2]
[313031572,1706652433224,1009.5958948,0.00020454,2]
[313031573,1706652517026,155.00310006,0.00020352,2]
[313031574,1706652527537,11544.05145785,0.00020454,2]
[313031633,1706652637716,-1996.16717164,0.00020631,2]
[313031635,1706652637726,-175.43157375,0.00020631,2]
[313031637,1706652637735,-3486.23529972,0.00020632,2]
[313031639,1706652637745,-482.57023696,0.00020955,2]
[313031641,1706652637754,-192.03918255,0.00020955,2]
[313031643,1706652637763,-231.99487961,0.00021054,2]
[313031644,1706652637779,-290.614447,0.00021054,2]
[313031645,1706652637788,-1504.99465965,0.00021054,2]
[313031693,1706652645784,-1928.90725858,0.00021054,2]
[313031695,1706652677939,1470.26572584,0.0001579,2]
[313031697,1706652691910,1470.26572584,0.0001579,2]
[313031698,1706652713919,1470.26572584,0.0001579,2]
[313031699,1706652731913,1470.26572584,0.0001579,2]
[313031700,1706652751914,1470.26572584,0.0001579,2]
[313031701,1706652769920,1470.26572584,0.0001579,2]
[313031702,1706652787932,1470.26572584,0.0001579,2]
[313031703,1706652805922,1470.26572584,0.0001579,2]
[313031704,1706652821927,1470.26572584,0.0001579,2]
[313031705,1706652822032,250.0,0.00019926,2]
[313031706,1706652841932,1470.26572584,0.0001579,2]
[313031707,1706652859924,1470.26572584,0.00015791,2]
[313031710,1706652877930,1470.26572584,0.0001579,2]
[313031711,1706652895944,1470.26572584,0.0001579,2]
[313031712,1706652898875,166.696548,0.00019754,2]
[313031713,1706652903399,1805.9767083,0.00020029,2]
[313031714,1706652913935,1470.26572584,0.0001579,2]
[313031717,1706652935938,650.80493757,0.0001579,2]
[313031718,1706653026240,172.83526425,0.00020442,2]
[313031879,1706653184234,24900.0,0.00019826,2]
[313031880,1706653191671,3000.0,0.00019826,2]
[313031883,1706653346997,304.482172,0.00020033,2]
[313031884,1706653423665,251.19577173,0.000189,2]
[313031885,1706653476011,245.9748359,0.00020003,2]
[313031886,1706653587599,7619.0523147,0.00020009,2]
[313031887,1706653597419,335.5636504,0.00020163,2]
[313031888,1706653710542,24900.0,0.00019707,2]
[313031907,1706653831871,-462.228,0.00020501,2]
[313031908,1706653831883,-100.0978598,0.00020501,2]
[313031909,1706653831892,-1243.97055445,0.00020501,2]
[313031910,1706653831901,-1996.16717164,0.00020502,2]
[313031911,1706653831910,-18927.35300975,0.00020503,2]
[313031912,1706653831919,-19889.78216214,0.00020504,2]
[313031913,1706653831928,-155.55173787,0.00020853,2]
[313031914,1706653831937,-386.0561896,0.00020953,2]
[313031915,1706653831946,-6332.79,0.00021044,3]
[313031916,1706653831955,-208.39220199,0.00021053,2]
[313031917,1706653831964,-522.60932661,0.00021053,2]
[313031918,1706653831973,-260.67799851,0.00021053,2]
[313031919,1706653831982,-7631.56164545,0.00021054,2]
[313031920,1706653831991,-20070.60550724,0.00021055,2]
[313031921,1706653832000,-1697.47554063,0.00021055,2]
[313031922,1706653832009,-555.97053838,0.00021055,2]
[313031923,1706653832019,-7961.97573395,0.00021055,2]
[313031924,1706653832028,-161.19857963,0.00021055,2]
[313031926,1706653832038,-2106.51819104,0.00021055,2]
[313031928,1706653832047,-2077.00381468,0.00021056,2]
[313031930,1706653832057,-200.0,0.00021527,7]
[313031932,1706653832066,-155.55173778,0.00021969,2]
[313031934,1706653832075,-1563.69691064,0.00022,2]
[313031936,1706653832084,-155.00465014,0.00022,2]
[313031938,1706653832093,-386.05618956,0.00022857,2]
[313031939,1706653832102,-155.55173778,0.00023086,2]
[313031940,1706653832111,-280.0,0.0002368,7]
[313031942,1706653832120,-251.19577173,0.000239,2]
[313031944,1706653832128,-155.55173778,0.00024202,2]
[313031946,1706653832138,-386.05618956,0.00024761,2]
[313031948,1706653832147,-10135.13429066,0.00025234,2]
[313032157,1706653837934,-20899.05725792,0.00020502,2]
[313032158,1706653837943,-13407.94957535,0.00025234,2]
[313032159,1706653838116,-11706.28121219,0.00025234,2]
[313032297,1706653842188,-14750.6349218,0.00025234,2]
[313032299,1706653842198,-155.55173778,0.00025318,2]
[313032301,1706653842207,-272.593128,0.00025798,2]
[313032303,1706653842216,-391.0,0.00026048,7]
[313032305,1706653842226,-155.55173778,0.00026435,2]
[313032307,1706653842235,-386.05618956,0.00026664,2]
[313032309,1706653842244,-5391.86419848,0.00026798,3]
[313032946,1706654083529,1162.6797596,0.0002021,2]
[313032947,1706654142229,284276.03393394,0.0002021,2]
[313032948,1706654221204,24900.0,0.00020015,2]
[313032949,1706654265977,209.537738,0.00020009,2]
[313032950,1706654405916,250.0,0.00019967,2]
[313032974,1706654775486,24900.0,0.00019861,2]
[313032975,1706654802607,209.537738,0.00019863,2]
[313032995,1706655032064,-155.0,0.00020713,2]
[313032997,1706655032074,-2709.22,0.00020714,3]
[313032999,1706655032083,-155.0,0.00020722,2]
[313033001,1706655032093,-155.0,0.00020723,2]
[313033002,1706655032102,-1410.05140972,0.00020723,2]
[313033006,1706655032121,-287.93649106,0.00020723,2]
[313033008,1706655032131,-37009.8984698,0.00020723,2]
[313033011,1706655032140,-83813.3038538,0.00020724,2]
[313033014,1706655032149,-329.99464709,0.00020725,2]
[313033017,1706655032159,-7480.05186763,0.00020725,2]
[313033303,1706655038113,-494.9489016,0.00020713,2]
[313033304,1706655038122,-155.0,0.00020713,2]
[313033305,1706655038131,-329.99464709,0.00020713,2]
[313033306,1706655038141,-1292.06915864,0.00020725,2]
[313033307,1706655038153,-11117.66113587,0.00020725,2]
[313033308,1706655038164,-7970.65505241,0.00020725,2]
[313033309,1706655038174,-3845.54835849,0.00020734,2]
[313033310,1706655038184,-1000.0100001,0.00020735,2]
[313033311,1706655038193,-170.6988826,0.00020742,2]
[313033312,1706655038203,-170.6988826,0.00020813,2]
[313033313,1706655038213,-155.00155002,0.00020826,2]
[313033314,1706655038222,-2005.37316766,0.00020839,2]
[313033315,1706655038232,-309.88995547,0.00020853,2]
[313033316,1706655038241,-1584.57551026,0.00020865,2]
[313033317,1706655038250,-15604.4614637,0.00020878,2]
[313033318,1706655038260,-170.6988826,0.00020884,2]
[313033319,1706655038270,-170.6988826,0.00020955,2]
[313033320,1706655038279,-155.04831009,0.00021001,2]
[313033321,1706655038289,-1000.38303454,0.00021002,2]
[313033322,1706655038299,-155.52200796,0.00021037,2]
[313033323,1706655038308,-155.01860223,0.00021037,2]
[313033324,1706655038317,-169.09579844,0.00021037,2]
[313033325,1706655038327,-1086.16139912,0.00021037,2]
[313033326,1706655038336,-200.0,0.00021037,2]
[313033327,1706655038346,-155.03813005,0.00021037,2]
[313033328,1706655038355,-155.60546346,0.00021037,2]
[313033329,1706655038365,-259.27542868,0.00021037,2]
[313033330,1706655038374,-2035.34911286,0.00021052,2]
[313033331,1706655038383,-242.7024983,0.00021052,2]
[313033332,1706655038392,-277.10504725,0.00021052,2]
[313033333,1706655038402,-243.02965196,0.00021053,2]
[313033334,1706655038411,-500.0,0.00021053,2]
[313033335,1706655038420,-384.53538259,0.00021053,2]
[313033336,1706655038430,-155.00155002,0.00021054,2]
[313033337,1706655038439,-4818.41258945,0.00021054,2]
[313033338,1706655038448,-379.361404,0.00021055,2]
[313033339,1706655038458,-379.361404,0.00021055,2]
[313033340,1706655038467,-379.361404,0.00021055,2]
[313033341,1706655038476,-379.361404,0.00021055,2]
[313033342,1706655038485,-379.361404,0.00021055,2]
[313033343,1706655038494,-379.361404,0.00021055,2]
[313033344,1706655038503,-379.361404,0.00021055,2]
[313033345,1706655038513,-379.361404,0.00021055,2]
[313033346,1706655038522,-379.361404,0.00021055,2]
[313033347,1706655038645,-379.361404,0.00021055,2]
[313033348,1706655038654,-379.361404,0.00021055,2]
[313033349,1706655038663,-379.361404,0.00021055,2]
[313033350,1706655038672,-379.361404,0.00021055,2]
[313033351,1706655038682,-379.361404,0.00021055,2]
[313033352,1706655038691,-379.361404,0.00021055,2]
[313033353,1706655038699,-379.361404,0.00021055,2]
[313033354,1706655038708,-379.361404,0.00021055,2]
[313033355,1706655038718,-379.361404,0.00021055,2]
[313033356,1706655038727,-379.361404,0.00021055,2]
[313033357,1706655038736,-379.361396,0.00021055,2]
[313033358,1706655038745,-4025.354008,0.00021055,2]
[313033359,1706655038754,-4025.354008,0.00021055,2]
[313033360,1706655038762,-4025.354008,0.00021055,2]
[313033361,1706655038771,-4025.354008,0.00021055,2]
[313033362,1706655038780,-4025.354008,0.00021055,2]
[313033363,1706655038790,-4025.354008,0.00021055,2]
[313033364,1706655038799,-4025.354008,0.00021055,2]
[313033365,1706655038808,-4025.354008,0.00021055,2]
[313033366,1706655038817,-4025.354008,0.00021055,2]
[313033367,1706655038826,-4025.354008,0.00021055,2]
[313033368,1706655038836,-4025.354008,0.00021055,2]
[313033369,1706655038845,-4025.354008,0.00021055,2]
[313033370,1706655038854,-4025.354008,0.00021055,2]
[313033371,1706655038863,-4025.354008,0.00021055,2]
[313033372,1706655038872,-4025.354008,0.00021055,2]
[313033373,1706655038881,-4025.354008,0.00021055,2]
[313033374,1706655038893,-4025.354008,0.00021055,2]
[313033375,1706655038902,-4025.354008,0.00021055,2]
[313033376,1706655038911,-4025.354008,0.00021055,2]
[313033377,1706655038920,-4025.354008,0.00021055,2]
[313033378,1706655038930,-1355.021019,0.00021055,2]
[313033379,1706655038940,-1355.021019,0.00021055,2]
[313033380,1706655038949,-1355.021019,0.00021055,2]
[313033381,1706655038958,-1355.021019,0.00021055,2]
[313033382,1706655038967,-1355.021019,0.00021055,2]
[313033383,1706655038977,-1355.021019,0.00021055,2]
[313033384,1706655038986,-1355.021019,0.00021055,2]
[313033385,1706655038995,-1355.021019,0.00021055,2]
[313033386,1706655039004,-1355.021019,0.00021055,2]
[313033387,1706655039014,-1355.021019,0.00021055,2]
[313033388,1706655039023,-1355.021019,0.00021055,2]
[313033389,1706655039032,-1355.021019,0.00021055,2]
[313033390,1706655039041,-1355.021019,0.00021055,2]
[313033391,1706655039050,-1355.021019,0.00021055,2]
[313033392,1706655039060,-1355.021019,0.00021055,2]
[313033393,1706655039069,-1355.021019,0.00021055,2]
[313033394,1706655039079,-1355.021019,0.00021055,2]
[313033395,1706655039090,-1355.021019,0.00021055,2]
[313033396,1706655039099,-1355.021019,0.00021055,2]
[313033397,1706655039109,-1355.021016,0.00021055,2]
[313033398,1706655039119,-10000.0,0.00021055,2]
[313033399,1706655039128,-10000.0,0.00021055,2]
[313033400,1706655039138,-10000.0,0.00021055,2]
[313033401,1706655039147,-10000.0,0.00021055,2]
[313033402,1706655039157,-10000.0,0.00021055,2]
[313033403,1706655039167,-10000.0,0.00021055,2]
[313033404,1706655039177,-10000.0,0.00021055,2]
[313033405,1706655039186,-10000.0,0.00021055,2]
[313033406,1706655039196,-10000.0,0.00021055,2]
[313033407,1706655039206,-10000.0,0.00021055,2]
[313033408,1706655039215,-10000.0,0.00021055,2]
[313033409,1706655039225,-151.0,0.00021055,2]
[313033410,1706655039234,-10000.0,0.00021055,2]
[313033411,1706655039243,-152.725525,0.00021055,2]
[313033412,1706655039253,-10000.0,0.00021055,2]
[313033413,1706655039262,-10000.0,0.00021055,2]
[313033414,1706655039272,-10000.0,0.00021055,2]
[313033415,1706655039282,-10000.0,0.00021055,2]
[313033416,1706655039292,-10000.0,0.00021055,2]
[313033417,1706655039301,-10000.0,0.00021055,2]
[313033418,1706655039310,-10000.0,0.00021055,2]
[313033419,1706655039322,-10000.0,0.00021055,2]
[313033420,1706655039331,-10000.0,0.00021055,2]
[313033421,1706655039342,-10000.0,0.00021055,2]
[313033422,1706655039351,-10000.0,0.00021055,2]
[313033423,1706655039361,-10000.0,0.00021055,2]
[313033424,1706655039371,-6588.534938,0.00021055,2]
[313033425,1706655039381,-151.0,0.00021055,2]
[313033426,1706655039390,-211.581868,0.00021055,2]
[313033427,1706655039399,-170.577747,0.00021055,2]
[313033428,1706655039410,-170.577747,0.00021055,2]
[313033429,1706655039419,-170.577747,0.00021055,2]
[313033430,1706655039429,-170.577747,0.00021055,2]
[313033431,1706655039439,-170.577747,0.00021055,2]
[313033432,1706655039448,-170.577747,0.00021055,2]
[313033433,1706655039458,-170.577747,0.00021055,2]
[313033434,1706655039468,-170.577747,0.00021055,2]
[313033435,1706655039477,-170.577747,0.00021055,2]
[313033436,1706655039486,-559.66491879,0.00021055,2]
[313033437,1706655039498,-1243.25365727,0.00021055,2]
[313033439,1706655039507,-20885.80394062,0.00021055,2]
[313033441,1706655039517,-18915.00160237,0.00021055,2]
[313033442,1706655039526,-1294.9059591,0.00021055,2]
[313033443,1706655039535,-1580.96149177,0.00021055,2]
[313033444,1706655039546,-1780.50835353,0.00021056,2]
[313033445,1706655039556,-200.0,0.00021759,7]
[313033446,1706655039566,-280.0,0.00023935,7]
[313033447,1706655039576,-151.0,0.000255,2]
[313033448,1706655039585,-199.5795051,0.00026027,2]
[313033449,1706655039595,-391.0,0.00026329,15]
[313033450,1706655039604,-500.0,0.00026795,2]
[313033451,1706655039614,-511.84526851,0.00026795,2]
[313033452,1706655039623,-500.0,0.00026795,2]
[313033453,1706655039632,-500.0,0.00026795,2]
[313033454,1706655039642,-415.76505033,0.00026795,2]
[313033455,1706655039651,-298.48147438,0.00026795,2]
[313033456,1706655039660,-160.99225998,0.00026795,2]
[313033457,1706655039670,-500.0,0.00026795,2]
[313033458,1706655039680,-581.19811971,0.00026795,2]
[313033459,1706655039689,-500.0,0.00026795,2]
[313033460,1706655039698,-500.0,0.00026795,2]
[313033461,1706655039708,-185.56595218,0.00026795,2]
[313033462,1706655039717,-236.77949922,0.00026795,2]
[313033463,1706655039727,-8472.640556,0.00026797,2]
[313033464,1706655039738,-6568.86135616,0.00026797,2]
[313033465,1706655039747,-4686.37327773,0.00026797,2]
[313033466,1706655039757,-4176.22799011,0.00026797,2]
[313033467,1706655039767,-280.11858007,0.00026798,2]
[313033468,1706655039777,-50000.0,0.00026804,2]
[313033469,1706655039786,-509.58030446,0.00026808,2]
[313033470,1706655039796,-2086.73700022,0.00026808,2]
[313033471,1706655039805,-5000.0,0.00026808,2]
[313033472,1706655039815,-5000.0,0.00026808,2]
[313033473,1706655039824,-4455.84531251,0.00026808,2]
[313033474,1706655039833,-199.5795051,0.00026849,2]
[313033475,1706655039842,-94.55417677,0.00026849,2]
[313033492,1706655041610,-155.33030437,0.00020724,2]
[313033493,1706655041619,-170.577747,0.00021055,2]
[313033494,1706655041628,-170.577747,0.00021055,2]
[313033495,1706655041637,-170.577747,0.00021055,2]
[313033496,1706655041647,-170.577747,0.00021055,2]
[313033497,1706655041656,-170.577747,0.00021055,2]
[313033498,1706655041665,-170.577747,0.00021055,2]
[313033499,1706655041674,-170.577747,0.00021055,2]
[313033500,1706655041684,-170.577747,0.00021055,2]
[313033501,1706655041694,-170.577747,0.00021055,2]
[313033502,1706655041703,-170.577747,0.00021055,2]
[313033503,1706655041712,-170.57775,0.00021055,2]
[313033504,1706655041721,-4681.49,0.00026787,3]
[313033505,1706655041731,-99.24183763,0.00026849,2]
[313033506,1706655041740,-199.5795051,0.00026878,2]
[313033507,1706655041749,-199.5795051,0.00026878,2]
[313033508,1706655041758,-199.5795051,0.00026878,2]
[313033509,1706655041768,-199.5795051,0.00027178,2]
[313033510,1706655041777,-210.7718519,0.00028493,2]
[313033511,1706655041787,-200.0,0.00028961,15]
[313033512,1706655041796,-348.0,0.00028961,15]
[313033513,1706655041805,-84115.50276332,0.00029116,2]
[313033514,1706655041814,-44312.96392475,0.00029679,2]
[313033522,1706655043092,-155.00310004,0.00021054,2]
[313033523,1706655043102,-7850.30498552,0.00029679,2]
[313033524,1706655043147,-1623.6353265,0.00029679,2]
[313033545,1706655674719,24900.0,0.00020005,2]
[313033546,1706655759304,209.537738,0.00019969,2]
[313033566,1706656141951,1919.8774955,0.00019961,2]
[313033629,1706656234042,-155.0,0.00020734,2]
[313033630,1706656234051,-453.46449264,0.00020735,2]
[313033631,1706656234060,-256.52682784,0.00020735,2]
[313033668,1706656238277,-1441.46107294,0.00020735,2]
[313033669,1706656238288,-421.73691125,0.00020841,2]
[313033671,1706656238300,-7382.11828034,0.00020841,2]
[313033677,1706656238354,-7835.74805258,0.00020841,2]
[313033679,1706656238363,-10990.40901523,0.00020842,2]
[313033681,1706656238373,-170.6988826,0.00020952,2]
[313033683,1706656238382,-1000.0100001,0.00021042,2]
[313033685,1706656238391,-1000.38303454,0.00021052,2]
[313033687,1706656238400,-1586.35135048,0.00021052,2]
[313033689,1706656238410,-170.67918142,0.00021052,2]
[313033691,1706656238419,-405.92314342,0.00021052,2]
[313033693,1706656238428,-156.31172154,0.00021052,2]
[313033695,1706656238439,-155.02170304,0.00021052,2]
[313033697,1706656238448,-156.66877586,0.00021052,2]
[313033699,1706656238457,-166.52761117,0.00021052,2]
[313033701,1706656238466,-155.00155002,0.00021052,2]
[313033703,1706656238476,-243.02965196,0.00021052,2]
[313033705,1706656238485,-242.7024983,0.00021052,2]
[313033707,1706656238494,-384.53538259,0.00021052,2]
[313033709,1706656238503,-155.52200796,0.00021052,2]
[313033711,1706656238513,-259.27542868,0.00021052,2]
[313033713,1706656238522,-500.0,0.00021052,2]
[313033714,1706656238531,-155.03813005,0.00021052,2]
[313033716,1706656238540,-277.10504725,0.00021052,2]
[313033717,1706656238550,-155.60546346,0.00021052,2]
[313033718,1706656238559,-155.01860223,0.00021052,2]
[313033719,1706656238568,-200.0,0.00021052,2]
[313033720,1706656238577,-169.09579844,0.00021052,2]
[313033721,1706656238587,-162.64127601,0.00021052,2]
[313033722,1706656238596,-2035.34911286,0.00021052,2]
[313033723,1706656238606,-155.04831009,0.00021052,2]
[313033724,1706656238615,-1584.57551026,0.00021052,2]
[313033725,1706656238624,-309.88995547,0.00021052,2]
[313033726,1706656238633,-2005.37316766,0.00021052,2]
[313033727,1706656238643,-267.58088134,0.00021053,2]
[313033728,1706656238652,-19726.57954333,0.00021053,2]
[313033729,1706656238661,-4818.41258945,0.00021053,2]
[313033730,1706656238670,-500.0,0.00021053,2]
[313033731,1706656238680,-523.91944735,0.00021053,2]
[313033732,1706656238689,-500.0,0.00021053,2]
[313033733,1706656238698,-500.0,0.00021053,2]
[313033734,1706656238707,-518.25289995,0.00021053,2]
[313033735,1706656238716,-500.0,0.00021053,2]
[313033736,1706656238726,-500.0,0.00021053,2]
[313033737,1706656238735,-500.0,0.00021053,2]
[313033738,1706656238745,-606.05711182,0.00021053,2]
[313033739,1706656238754,-500.0,0.00021053,2]
[313033740,1706656238764,-500.0,0.00021053,2]
[313033741,1706656238772,-197.8801157,0.00021053,2]
[313033742,1706656238782,-500.0,0.00021053,2]
[313033743,1706656238791,-500.0,0.00021053,2]
[313033744,1706656238800,-500.0,0.00021053,2]
[313033745,1706656238811,-500.0,0.00021053,2]
[313033746,1706656238820,-500.0,0.00021053,2]
[313033747,1706656238829,-500.0,0.00021053,2]
[313033748,1706656238917,-500.0,0.00021053,2]
[313033749,1706656238926,-650.0,0.00021053,2]
[313033750,1706656238937,-2106.51819104,0.00021054,2]
[313033751,1706656238946,-156.30169495,0.00021054,2]
[313033752,1706656238955,-176.47754897,0.00021054,2]
[313033753,1706656238965,-1780.50835353,0.00021054,2]
[313033754,1706656238974,-1580.96149177,0.00021054,2]
[313033755,1706656238983,-309.69636368,0.00021054,2]
[313033756,1706656238992,-1294.9059591,0.00021054,2]
[313033757,1706656239001,-18915.00160237,0.00021054,2]
[313033758,1706656239010,-20885.80394062,0.00021054,2]
[313033759,1706656239019,-1243.25365727,0.00021054,2]
[313033760,1706656239028,-155.2789402,0.00021055,2]
[313033761,1706656239038,-6879.05973172,0.00021055,2]
[313033762,1706656239047,-3185.98579741,0.00021055,2]
[313033763,1706656239056,-274.80815343,0.00021055,2]
[313033764,1706656239065,-11889.82958359,0.00021056,2]
[313033765,1706656239074,-47755.21223955,0.00021056,2]
[313033766,1706656239084,-233.99326596,0.00021056,2]
[313033767,1706656239093,-200.0,0.00021771,7]
[313033768,1706656239102,-166.696548,0.00023178,2]
[313033769,1706656239111,-280.0,0.00023949,7]
[313033770,1706656239120,-199.5795051,0.00025205,2]
[313033771,1706656239130,-391.0,0.00026343,15]
[313033772,1706656239139,-170.6988826,0.00026697,2]
[313033773,1706656239148,-38057.88066072,0.00026797,2]
[313033774,1706656239157,-5000.0,0.00026797,2]
[313033775,1706656239166,-2313.56837055,0.00026797,2]
[313033776,1706656239175,-13870.90586354,0.00026797,2]
[313033777,1706656239184,-150.0,0.00027016,2]
[313033778,1706656239195,-500.0,0.00027397,2]
[313033779,1706656239255,-24234.35154093,0.000275,2]
[313033780,1706656239264,-500.0,0.00027534,2]
[313033781,1706656239274,-500.0,0.00027671,2]
[313033782,1706656239283,-500.0,0.00027808,2]
[313033783,1706656239292,-7707.58647134,0.00027855,2]